[Event "5th Baskent University Open 2022"]
[Site "Ankara"]
[Date "2022.07.06"]
[Round "8.14"]
[White "Akbas, Umut Ata"]
[Black "Primbetov, Kazbek"]
[Result "1-0"]
[ECO "E16"]
[WhiteElo "2298"]
[BlackElo "2147"]
[Annotator "TA"]
[PlyCount "79"]
[EventDate "2022.07.02"]
[EventType "swiss"]
[EventCountry "TUR"]
[SourceTitle "playchess.com"]
[Source "ChessBase"]
[SourceQuality "1"]
[TimeControl "5400+30"]

{[%evp 20,79,18,8,31,8,17,22,14,-18,23,0,0,6,2,20,0,0,66,23,126,114,202,196,200,184,197,189,210,84,145,132,189,157,288,291,268,268,268,263,252,138,142,142,202,172,425,426,414,382,408,312,793,790,974,833,1256,891,2079,1252,798,463]} 1. d4 {[%emt 0:01:00]} Nf6 {[%emt 0:09:00]} 2. c4 {[%emt 0:00:30]} b6 {[%emt 0:00:00]} 3. Nf3 {[%emt 0:00:00]} Bb7 {[%emt 0:02:00]} 4. g3 {[%emt 0:01:00]} e6 {[%emt 0:00:30]} 5. Bg2 {[%emt 0:00:30]} c5 {[%emt 0:00:30]} 6. d5 {[%emt 0:02:30]} exd5 {[%emt 0:00:30]} 7. Nh4 {[%emt 0:00:30]} g6 {[%emt 0:00:30]} 8. O-O {[%emt 0:00:30]} Bg7 {[%emt 0:00:30]} 9. Nc3 {[%emt 0:00:30]} O-O {[%emt 0:00:00] 9...d6 is vanishing.} 10. cxd5 {[%emt 0:01:30]} d6 {[%emt 0:00:00]} 11. e4 {[%emt 0:00:00]} Nbd7 {[%emt 0:00:00] E16: Queen's Indian: 4 g3 Bb7 5 Bg2 Bb4+.} 12. Re1 {[%emt 0:01:00]} a6 {[%emt 0:02:00]} 13. a4 {[%emt 0:00:30] Inhibits b5.} Re8 {[%emt 0:00:00] The position is equal.} 14. Nf3 {[%emt 0:02:30] [#]} c4 $146 {[%emt 0:28:00]} (14... b5 $5) ({Predecessor:} 14... Qc7 15. Nd2 c4 16. Bf1 Ne5 17. Qc2 Qc5 18. h3 b5 19. axb5 axb5 20. Rxa8 Rxa8 {0-1 (42) Piliposyan,R (2199)-Janik,I (2467) Chess.com INT 2020}) 15. Be3 {[%emt 0:09:30]} (15. Bf4 $5 {[%cal Rf4d6]}) 15... Nxe4 {[%emt 0:13:30]} 16. Nxe4 {[%emt 0:00:30]} Rxe4 {[%emt 0:00:00]} 17. Nd2 {[%emt 0:00:30]} Rxe3 {[%emt 0:01:00]} 18. Rxe3 {[%emt 0:00:30]} Bxb2 {[%emt 0:00:00]} (18... b5 $11) 19. Ra2 {[%emt 0:02:30]} c3 {[%emt 0:07:00]} (19... Bd4 $11 {remains equal.} 20. Re4 Bc5) 20. Nc4 $1 $16 {[%emt 0:03:30][%csl LRb2,LRd6]} Nc5 {[%emt 0:11:30]} (20... Ne5 $16 21. Nxb2 cxb2) 21. Nxb2 $18 {[%emt 0:00:30]} cxb2 {[%emt 0:00:30]} 22. Rxb2 {[%emt 0:00:30]} Bc8 {[%emt 0:15:36]} 23. Qd4 {[%emt 0:27:30][%cal Ob2b6]} Bd7 {[%emt 0:00:30]} 24. Ra2 {[%emt 0:00:30]} (24. Rbe2 $18 {and the rest is easy.}) 24... Qg5 {[%emt 0:00:30] Inhibits Re7.} (24... Qf8 $142) 25. h4 {[%emt 0:00:30]} Qf5 {[%emt 0:00:30]} (25... Qg4 $16 26. Qa1 Rf8) 26. Kh2 {[%emt 0:00:30] And now Rae2 would win.} Qb1 {[%emt 0:00:30]} (26... Rf8 $16 {was worth a try.} 27. Rf3 Qe5 28. Qxe5 dxe5) 27. Ra1 {[%emt 0:00:30]} Qc2 {[%emt 0:00:30]} 28. Qf6 {[%emt 0:00:30]} Bxa4 {[%emt 0:00:30]} 29. Rf3 {[%emt 0:00:30][%cal Be3f3,Bf3f4,Bf4d4][%mdl 32]} Rf8 {[%emt 0:00:30]} 30. h5 {[%emt 0:00:30]} ({White must play} 30. Qxd6 $18 Nd7 31. Re1) 30... Nd7 $16 {[%emt 0:00:30]} 31. Qxd6 {[%emt 0:00:30] White is more active.} Bb5 {[%emt 0:00:30]} (31... Qc5 $16 32. Qf4 Bb5) 32. Bf1 $36 {[%emt 0:00:30][%mdl 2048] [#] Hoping for Bxb5. White is in control.} Bxf1 {[%emt 0:07:43]} (32... Qc5 33. Qxc5 bxc5) 33. Rxf1 {[%emt 0:00:30] aiming for Re1.} ({Weaker is} 33. Qxd7 Qe4 34. Raa3 Qe5 $14) 33... Qe4 {[%emt 0:00:30] Against Re1} (33... Qe2 $2 34. Kg2 Nc5 35. Qf6 $18) 34. Rf4 {[%emt 0:00:30]} Qe2 {[%emt 0:00:00]} 35. Kg2 {[%emt 0:02:30]} Ne5 {[%emt 0:00:37]} (35... g5 36. Rd4 (36. Rf5 $2 Qe4+ 37. Rf3 Ne5 $19) 36... Qe5 37. Qxe5 Nxe5) 36. h6 {[%emt 0:01:30] [#] White threatens Qf6 and mate. White is clearly winning.} Nd3 {[%emt 0:00:46]} 37. Rd4 {[%emt 0:09:30][%cal Od4d3] Black must now prevent Rxd3!} Re8 {[%emt 0:01:33]} 38. Qf6 {[%emt 0:00:30][%csl Gh6][%cal Rf6g7]} Kf8 {[%emt 0:00:29]} 39. d6 {[%emt 0:00:30][%csl Gh6][%cal Rf6g7]} Qe5 {[%emt 0:00:41]} 40. Qg7+ {[%emt 0:00:30] Weighted Error Value: White=0.24 (precise) /Black=0.45} 1-0

[Event "5th Baskent University Open 2022"]
[Site "Ankara"]
[Date "2022.07.06"]
[Round "8.15"]
[White "Khoder, Akram"]
[Black "Altun, Arda"]
[Result "0-1"]
[ECO "D11"]
[WhiteElo "2038"]
[BlackElo "2213"]
[Annotator "TA"]
[PlyCount "94"]
[EventDate "2022.07.02"]
[EventType "swiss"]
[EventCountry "TUR"]
[SourceTitle "playchess.com"]
[Source "ChessBase"]
[SourceQuality "1"]
[TimeControl "5400+30"]

{[%evp 9,94,6,15,0,0,1,2,22,8,11,12,4,28,0,-13,0,-8,-31,-12,-6,-8,-14,-16,-47,-28,-35,-29,-62,-40,-57,-31,-72,-54,-67,-69,-132,-97,-103,-95,-112,-110,-133,-126,-129,-112,-114,-121,-118,-115,-163,-183,-209,-159,-180,-95,-95,-95,-102,-105,-164,-100,-142,-56,-59,-59,-59,-60,-60,0,-62,-65,-137,-46,-383,-344,-494,-503,-763,-742,-2244,-1891,-1318,-1224,-29969,-5225,-29977,-2643]} 1. d4 {[%emt 0:01:00]} d5 {[%emt 0:03:00]} 2. c4 {[%emt 0:00:30]} c6 {[%emt 0:00:30]} 3. Nf3 {[%emt 0:00:30]} Nf6 {[%emt 0:00:00]} 4. g3 {[%emt 0:00:00]} Bg4 {[%emt 0:00:00]} 5. Ne5 {[%emt 0:00:00]} Bf5 {[%emt 0:00:00]} 6. Qb3 {[%emt 0:00:00] D11: Slav Defence: 3 Nf3 sidelines and 3...Nf6 4 e3 Bg4.} Qb6 {[%emt 0:00:00]} 7. cxd5 {[%emt 0:00:00]} Qxb3 {[%emt 0:00:30]} 8. axb3 {[%emt 0:00:00] The position is equal.} Nxd5 {[%emt 0:00:00] [#]} 9. Bd2 $146 {[%emt 0:00:00] Prevents Nb4.} ({Predecessor:} 9. Bg2 Nb4 10. O-O f6 11. Nc4 Nd7 12. Nba3 e6 13. Bf4 Kf7 14. Nd6+ Bxd6 15. Bxd6 {1-0 (55) Predke,A (2696)-Rublevsky,S (2653) Sochi 2020}) 9... e6 {[%emt 0:02:00]} 10. Bg2 {[%emt 0:00:00]} Nb4 {[%emt 0:11:30]} 11. Bxb4 {[%emt 0:33:00]} Bxb4+ {[%emt 0:00:00]} 12. Nc3 {[%emt 0:00:00]} Nd7 {[%emt 0:11:00]} 13. Nc4 {[%emt 0:21:00]} O-O {[%emt 0:06:30]} 14. e4 {[%emt 0:03:30]} Bg6 {[%emt 0:00:00]} 15. O-O {[%emt 0:00:30]} Rfd8 {[%emt 0:07:00][%cal Bf8d8,Bd8c8,Bc8c6,Bc6b6][%mdl 32]} 16. Ne3 {[%emt 0:01:30]} Nf6 {[%emt 0:02:30]} 17. e5 {[%emt 0:01:30]} Nd5 {[%emt 0:00:30]} 18. Nexd5 {[%emt 0:01:30]} cxd5 {[%emt 0:18:30]} 19. Rfc1 {[%emt 0:15:30]} Rdc8 {[%emt 0:00:30]} 20. Kf1 {[%emt 0:00:30]} a6 {[%emt 0:02:30]} 21. Ke2 {[%emt 0:00:30]} Rc6 {[%emt 0:01:30]} 22. Kd2 {[%emt 0:02:29]} (22. Na2 $15 Bf8 23. h4) 22... Rac8 {[%emt 0:01:30]} 23. Bf1 {[%emt 0:00:15]} Rb6 {[%emt 0:05:30] Black is more active.} 24. Bd3 {[%emt 0:08:32]} Bxc3+ {[%emt 0:00:30]} 25. bxc3 {[%emt 0:03:36]} Bxd3 {[%emt 0:03:30]} ({And not} 25... Rxb3 26. Rab1 Rxb1 27. Bxb1 $17) 26. Kxd3 {[%emt 0:00:30]} Rxb3 {[%emt 0:00:00]} 27. Rab1 {[%emt 0:00:21]} Rxb1 {[%emt 0:00:00]} 28. Rxb1 $17 {[%emt 0:00:00][%mdl 4096] Endgame KR-KR} b5 {[%emt 0:00:30]} 29. f4 {[%emt 0:00:27]} (29. Ra1 $17) 29... h5 $1 $19 {[%emt 0:01:30]} 30. h3 {[%emt 0:00:11]} Kh7 {[%emt 0:11:26][%cal Oh5h4]} 31. g4 {[%emt 0:01:17]} hxg4 {[%emt 0:01:18]} (31... Kh6 $19 32. Rb2 Ra8) 32. hxg4 $17 {[%emt 0:00:30]} Kg6 {[%emt 0:00:00]} 33. Ra1 {[%emt 0:00:28]} Ra8 {[%emt 0:02:03]} 34. Rf1 {[%emt 0:01:34]} (34. Ra5 $17) 34... Ra7 {[%emt 0:01:42]} (34... a5 $1 $19 35. Rb1 Rb8) 35. Rh1 {[%emt 0:01:36] [#]} Rb7 {[%emt 0:02:15]} (35... a5 $1 $17 36. Rb1 Rb7) 36. Ra1 {[%emt 0:01:48]} Rb6 $1 {[%emt 0:00:02]} 37. Ra2 {[%emt 0:00:16]} Rc6 {[%emt 0:00:24]} 38. Ra1 {[%emt 0:00:25]} Rb6 {[%emt 0:01:33]} 39. Ra2 $1 {[%emt 0:00:18]} f6 {[%emt 0:00:00]} 40. Rf2 {[%emt 0:01:06] [#]} (40. Ke3 $15) 40... b4 {[%emt 0:02:50]} ({Black should play} 40... fxe5 $1 $17 {White must now prevent ...e4+.} 41. dxe5 a5 42. f5+ Kf7) 41. c4 $2 {[%emt 0:01:44][%mdl 8192] White does not recover from this.} ({White should try} 41. f5+ $1 $15 exf5 42. gxf5+ Kg5 43. cxb4) 41... fxe5 $19 {[%emt 0:01:35]} 42. dxe5 {[%emt 0:01:32]} (42. fxe5 {was necessary.} dxc4+ 43. Kxc4) 42... b3 {[%emt 0:00:46][%cal Bb4b3,Bb3b2][%mdl 32]} 43. Rb2 {[%emt 0:00:49]} (43. Rf1 $142 dxc4+ 44. Kxc4) 43... a5 {[%emt 0:00:10][%cal Ba6a5,Ba5a4,Ba4a3][%mdl 32] And now ...a4 would win.} 44. cxd5 {[%emt 0:00:54]} exd5 {[%emt 0:00:30] Strongly threatening ...a4.} 45. Kc3 {[%emt 0:00:00]} a4 {[%emt 0:00:17]} 46. Rb1 {[%emt 0:00:04]} a3 {[%emt 0:00:30] ( -> ...b2)} 47. e6 {[%emt 0:01:31]} b2 {[%emt 0:01:06] Weighted Error Value: White=0.79/Black=0.13 (very precise)} 0-1

[Event "5th Baskent University Open 2022"]
[Site "Ankara"]
[Date "2022.07.06"]
[Round "8.16"]
[White "Cakiroglu, Metin"]
[Black "Ipek, Egehan"]
[Result "1/2-1/2"]
[ECO "D00"]
[WhiteElo "2068"]
[BlackElo "2196"]
[Annotator "TA"]
[PlyCount "232"]
[EventDate "2022.07.02"]
[EventType "swiss"]
[EventCountry "TUR"]
[SourceTitle "playchess.com"]
[Source "ChessBase"]
[SourceQuality "1"]
[TimeControl "5400+30"]

{[%evp 9,232,0,25,-11,-17,-39,-27,-40,-15,-64,-6,-58,-62,-64,-39,-53,-43,-55,-25,-107,-102,-155,-145,-405,-404,-441,-369,-362,-300,-276,-247,-233,-231,-370,-285,-287,-240,-271,-172,-193,-166,-219,-220,-284,-290,-433,-291,-295,-57,-63,-63,-63,-63,-63,-73,-63,-63,-63,-59,-62,-65,-61,-45,-45,-12,-21,-6,-6,-6,-6,-6,-22,-22,-22,-22,-22,-22,-22,-21,-21,-21,-21,-21,-22,-22,-22,-22,-22,-22,-22,-22,-22,-22,-22,-22,-22,-22,-22,-14,-52,-52,-53,-53,-53,-53,-60,-60,-60,-8,-60,-56,-60,-28,-28,-9,-13,-8,-8,-8,-16,-8,-8,-8,-8,-8,-60,-60,-60,-60,-60,-60,-60,-60,-60,-60,-60,-60,-60,-60,-60,-60,-60,-60,-60,-60,-60,-60,-63,-63,-66,-60,-60,0,-68,-68,-69,-60,-60,-52,-52,-60,-60,-8,-8,-8,-8,-8,-8,0,0,0,0,0,0,0,0,0,0,0,0,0,-8,0,0,0,0,0,0,0,0,0,0,0,0,0,0,0,0,0,0,0,0,0,0,0,0,0,0,0,0,0,0,0,0,0,0,0,0,0,-8,0,0,0,0,0]} 1. d4 {[%emt 0:06:00]} d5 {[%emt 0:01:00]} 2. Nc3 {[%emt 0:00:30]} Nf6 {[%emt 0:00:00]} 3. Bf4 {[%emt 0:00:00]} a6 {[%emt 0:00:00]} 4. e3 {[%emt 0:00:00]} e6 {[%emt 0:01:30]} 5. g4 {[%emt 0:00:00]} h6 {[%emt 0:00:30]} 6. a3 {[%emt 0:03:00] D00: 1 d4 d5: Unusual lines.} c5 {[%emt 0:00:30] [#]} 7. Qf3 $146 {[%emt 0:06:30]} ({Predecessor:} 7. h4 Nc6 8. Bg2 cxd4 9. exd4 Qb6 10. g5 hxg5 11. hxg5 Rxh1 12. Bxh1 Ng8 13. g6 Qxd4 14. gxf7+ Kxf7 {0-1 (54) Gelman,A (2403)-Gurevich,D (2399) Chess.com INT 2020}) 7... Nc6 {[%emt 0:01:30]} 8. Nge2 {[%emt 0:00:30] Black has an edge.} b5 {[%emt 0:06:30]} 9. Bg2 {[%emt 0:01:30]} (9. h4 $11 {is more appropriate.}) 9... Bb7 {[%emt 0:01:30]} (9... g5 $1 $15 10. Bg3 h5) 10. Qg3 {[%emt 0:02:30]} (10. h4 $11) 10... Rc8 {[%emt 0:08:30]} 11. h4 {[%emt 0:03:30] Inhibits g5.} Qb6 {[%emt 0:12:30][%cal Rc5d4]} 12. dxc5 {[%emt 0:01:30]} Qxc5 {[%emt 0:04:30]} 13. O-O {[%emt 0:01:30]} Be7 {[%emt 0:06:30]} (13... Rg8 $5 {[%cal Rg7g5]}) 14. Bf3 {[%emt 0:05:30]} (14. Rad1 $11 {keeps the balance.}) 14... Nd7 $17 {[%emt 0:06:30] aiming for ...g5.} 15. b4 {[%emt 0:01:30]} (15. g5 $142) 15... Qb6 {[%emt 0:08:30]} 16. Qh2 $2 {[%emt 0:14:30][%mdl 8192]} (16. g5 $17 {was necessary.}) 16... Bf6 $19 {[%emt 0:23:08]} 17. Bg2 {[%emt 0:24:30]} Ne7 {[%emt 0:00:30]} 18. Na2 {[%emt 0:00:30]} Bxa1 {[%emt 0:00:30]} 19. Rxa1 {[%emt 0:00:30]} Rxc2 {[%emt 0:00:30]} 20. Nd4 {[%emt 0:00:30]} Rc4 {[%emt 0:00:30]} 21. Bf1 {[%emt 0:00:30]} (21. Rc1 $142) 21... Rc8 {[%emt 0:00:30]} 22. Bd6 {[%emt 0:00:30]} Nf6 {[%emt 0:00:30]} 23. f3 {[%emt 0:00:30]} Nc6 {[%emt 0:00:30]} 24. Bc5 {[%emt 0:00:30]} Nxd4 {[%emt 0:00:30]} 25. Bxd4 {[%emt 0:00:30]} (25. exd4 $142 Qc7 26. a4 bxa4 27. Nc3) 25... Qc7 {[%emt 0:00:30]} 26. Be5 {[%emt 0:00:30]} Qc2 {[%emt 0:00:30]} 27. Qf4 {[%emt 0:00:30]} (27. Bd4 $142) 27... Qd2 {[%emt 0:00:30]} 28. Qd4 {[%emt 0:04:30]} Rc2 {[%emt 0:04:15]} ({Black should play} 28... Qxd4 $19 29. Bxd4 O-O) 29. Qxd2 $15 {[%emt 0:00:30]} Rxd2 {[%emt 0:00:00]} 30. Bc3 {[%emt 0:01:30] Prevents d4.} Rc2 {[%emt 0:00:12][%cal Od5d4] Threatens to win with ...d4!} 31. Bd3 {[%emt 0:00:30] [#]} Rxc3 {[%emt 0:03:22]} 32. Nxc3 {[%emt 0:00:00]} d4 {[%emt 0:01:31]} 33. exd4 {[%emt 0:00:00]} Bxf3 {[%emt 0:00:30]} 34. a4 {[%emt 0:00:30]} O-O {[%emt 0:00:25]} ({Much less strong is} 34... Nxg4 35. axb5 axb5 36. Be2 Bxe2 37. Ra8+ Kd7 38. Rxh8 $14) 35. axb5 {[%emt 0:01:30]} axb5 {[%emt 0:00:04]} 36. g5 {[%emt 0:00:30]} hxg5 {[%emt 0:00:35]} 37. hxg5 {[%emt 0:00:00]} Rc8 {[%emt 0:00:31]} 38. Nxb5 {[%emt 0:00:00]} Nd5 {[%emt 0:00:17]} 39. Nd6 {[%emt 0:09:48]} Rd8 {[%emt 0:02:29]} 40. Nxf7 {[%emt 0:01:27]} Kxf7 {[%emt 0:00:26]} 41. Rf1 {[%emt 0:00:08] [#]} Nxb4 $1 {[%emt 0:00:56][%cal Od8d4]} 42. Rxf3+ $11 {[%emt 0:00:07][%mdl 4096] Endgame KRB-KRN} Ke7 {[%emt 0:00:58]} 43. Bg6 {[%emt 0:00:11]} Rxd4 {[%emt 0:00:21]} 44. Rf7+ {[%emt 0:00:07]} Kd6 {[%emt 0:00:00]} 45. Rxg7 {[%emt 0:01:01]} Rg4+ {[%emt 0:00:25]} 46. Kf1 {[%emt 0:00:00]} Rxg5 {[%emt 0:00:00]} 47. Rb7 {[%emt 0:00:36]} Nd5 {[%emt 0:00:41]} 48. Bh7 {[%emt 0:00:23]} Ke5 {[%emt 0:00:39]} 49. Kf2 {[%emt 0:01:06]} Kd4 {[%emt 0:01:01]} 50. Rb3 {[%emt 0:00:30]} Rg7 {[%emt 0:01:12] And now ...Rf7+ would win.} 51. Rd3+ {[%emt 0:01:16]} Kc4 {[%emt 0:01:42]} 52. Rh3 $1 {[%emt 0:00:07]} Rf7+ {[%emt 0:00:58]} 53. Ke1 {[%emt 0:00:16]} Nf4 {[%emt 0:01:52]} 54. Rh6 {[%emt 0:00:15]} Kd4 {[%emt 0:00:21]} 55. Kd2 {[%emt 0:01:58]} Rg7 {[%emt 0:00:30]} 56. Rh2 {[%emt 0:00:33]} e5 {[%emt 0:00:40]} 57. Bc2 {[%emt 0:00:14]} Rg3 {[%emt 0:00:17]} 58. Rf2 {[%emt 0:00:27]} Ng2 {[%emt 0:01:25]} (58... Rh3 $15) 59. Re2 {[%emt 0:01:38]} (59. Rf8 $11) 59... Ne3 $15 {[%emt 0:00:23]} 60. Bh7 {[%emt 0:00:30]} Nc4+ {[%emt 0:00:39]} 61. Ke1 {[%emt 0:00:17]} Rg7 {[%emt 0:00:56]} 62. Re4+ {[%emt 0:00:38]} Kd5 {[%emt 0:00:49]} 63. Rh4 {[%emt 0:00:34]} Nd6 {[%emt 0:00:20]} 64. Kf2 {[%emt 0:00:07]} e4 {[%emt 0:01:41]} 65. Bxe4+ {[%emt 0:00:30]} Nxe4+ $11 {[%emt 0:00:00] KRN-KR} 66. Ke3 {[%emt 0:00:31]} Nf6 {[%emt 0:00:00]} 67. Ra4 {[%emt 0:00:12]} ({Better is} 67. Rd4+ $11 Ke5 68. Kd3) 67... Rg3+ $15 {[%emt 0:00:18]} 68. Kf2 {[%emt 0:00:37]} Rb3 {[%emt 0:00:07]} 69. Ra5+ {[%emt 0:00:25]} Ke4 {[%emt 0:00:20]} 70. Ra4+ {[%emt 0:00:12]} Kf5 {[%emt 0:00:08]} 71. Ke2 {[%emt 0:00:26]} Nd5 {[%emt 0:01:34]} 72. Ra8 {[%emt 0:00:30]} Ke4 {[%emt 0:00:30]} 73. Re8+ {[%emt 0:00:30]} Kd4 {[%emt 0:00:01]} 74. Kf2 {[%emt 0:00:23]} Nf6 {[%emt 0:00:31]} 75. Rf8 {[%emt 0:02:23]} Ne4+ {[%emt 0:00:15]} 76. Kg2 {[%emt 0:00:48]} Rg3+ {[%emt 0:00:03]} 77. Kh2 {[%emt 0:00:34]} Ke3 {[%emt 0:01:20]} 78. Re8 {[%emt 0:00:31][%cal Oe8e4]} Rg6 {[%emt 0:00:19][%cal Oe3f2]} 79. Rf8 {[%emt 0:03:14]} Nd2 {[%emt 0:01:30]} 80. Re8+ {[%emt 0:00:35]} Ne4 {[%emt 0:01:00][%cal Oe3f2]} 81. Rf8 $1 {[%emt 0:00:20]} Ng5 {[%emt 0:00:15] ( -> ...Nf3+)} 82. Ra8 {[%emt 0:00:28]} Nf3+ {[%emt 0:01:04]} 83. Kh3 {[%emt 0:00:08]} Nd2 {[%emt 0:00:03]} 84. Kh4 {[%emt 0:00:53]} Ne4 {[%emt 0:00:31]} 85. Kh5 $1 {[%emt 0:00:08]} Rg5+ {[%emt 0:00:28]} (85... Rg1 $15) 86. Kh6 $1 $11 {[%emt 0:01:32] The position is equal.} Kf4 {[%emt 0:00:31]} 87. Rf8+ {[%emt 0:01:02]} Kg4 {[%emt 0:00:09]} 88. Ra8 {[%emt 0:01:02]} Rb5 {[%emt 0:01:01]} 89. Kg6 {[%emt 0:00:18]} Rb6+ {[%emt 0:00:15]} 90. Kf7 {[%emt 0:00:15]} Ng5+ {[%emt 0:00:17]} 91. Ke7 {[%emt 0:00:30]} Nf3 {[%emt 0:00:00]} 92. Ra5 {[%emt 0:00:47]} Kf4 {[%emt 0:00:00]} 93. Kd7 {[%emt 0:00:55]} Nd4 {[%emt 0:00:14]} 94. Rh5 {[%emt 0:01:08]} Nf5 {[%emt 0:00:13]} 95. Kc7 {[%emt 0:00:20]} Rg6 {[%emt 0:00:30]} 96. Rh1 {[%emt 0:00:00]} Ke5 {[%emt 0:00:00]} 97. Rd1 {[%emt 0:00:54]} Nd4 {[%emt 0:00:00]} 98. Rh1 {[%emt 0:00:16]} Kd5 {[%emt 0:00:17]} 99. Rh5+ {[%emt 0:00:42]} Kc4 {[%emt 0:00:03]} 100. Kd7 {[%emt 0:00:07]} Nf3 {[%emt 0:00:31]} 101. Ra5 {[%emt 0:00:28]} Nd4 {[%emt 0:00:21]} 102. Rh5 {[%emt 0:00:23]} Ne6 {[%emt 0:00:15]} 103. Ke7 {[%emt 0:01:37]} Ng5 {[%emt 0:00:49]} 104. Rh1 {[%emt 0:00:55]} Kd5 {[%emt 0:00:06]} 105. Rd1+ {[%emt 0:00:30]} Ke5 {[%emt 0:00:30]} 106. Re1+ {[%emt 0:00:30]} Ne4 {[%emt 0:00:30]} 107. Kd7 {[%emt 0:00:00]} Rh6 {[%emt 0:00:00]} 108. Ra1 {[%emt 0:00:00]} Nc3 {[%emt 0:00:12]} 109. Rg1 {[%emt 0:01:27]} Rd6+ {[%emt 0:00:38]} 110. Ke7 {[%emt 0:00:42]} Nd5+ {[%emt 0:00:00]} 111. Kf7 {[%emt 0:00:10]} Rd7+ {[%emt 0:00:00]} 112. Ke8 {[%emt 0:00:39]} Re7+ {[%emt 0:01:19]} 113. Kf8 {[%emt 0:00:34]} Ra7 {[%emt 0:00:26]} 114. Rg7 {[%emt 0:00:36]} Ra8+ {[%emt 0:01:45]} 115. Kf7 {[%emt 0:00:30]} Kf5 {[%emt 0:00:00] Inhibits Rg5+.} 116. Rg1 {[%emt 0:00:28]} Ra7+ {[%emt 0:00:00] Whites escaped into a draw.  Weighted Error Value: White=0.24 (precise) /Black=0.26 (precise)} 1/2-1/2